[Event "Titled Tuesday Blitz July 4 Early 2023"]
[White "Novik, Maxim"]
[Black "Ibarra Jerez, Jose Carlos"]
[WhiteFideId "4102924"]
[BlackFideId "2226332"]
[WhiteElo "2503"]
[BlackElo "2915"]
[Result "0-1"]
[Round "1"]
[TimeControl "180+2"]
[Date "2023.07.04"]
[WhiteClock "0:00:30"]
[BlackClock "0:01:37"]
[Board "32"]

1. d4 {[%clk 0:02:47]}  Nf6 {[%clk 0:02:59]} 2. c4 {[%clk 0:02:46]}  d6 {[%clk 0:03:00]} 3. Nc3 {[%clk 0:02:46]}  e5 {[%clk 0:03:01]} 4. Nf3 {[%clk 0:02:46]}  e4 {[%clk 0:03:01]} 5. Ng5 {[%clk 0:02:46]}  Qe7 {[%clk 0:03:02]} 6. Qc2 {[%clk 0:02:36]}  Bf5 {[%clk 0:03:01]} 7. f3 {[%clk 0:02:31]}  Nc6 {[%clk 0:03:01]} 8. e3 {[%clk 0:02:25]}  Nxd4 {[%clk 0:02:55]} 9. Qd1 {[%clk 0:02:12]}  Nc6 {[%clk 0:02:52]} 10. f4 {[%clk 0:02:01]}  h6 {[%clk 0:02:48]} 11. Nh3 {[%clk 0:02:01]}  Bxh3 {[%clk 0:02:38]} 12. gxh3 {[%clk 0:02:00]}  g6 {[%clk 0:02:35]} 13. b3 {[%clk 0:01:47]}  Bg7 {[%clk 0:02:34]} 14. Bb2 {[%clk 0:01:47]}  O-O {[%clk 0:02:34]} 15. Qd2 {[%clk 0:01:44]}  a5 {[%clk 0:02:28]} 16. O-O-O {[%clk 0:01:40]}  Nb4 {[%clk 0:02:24]} 17. Kb1 {[%clk 0:01:36]}  Rfe8 {[%clk 0:02:16]} 18. Be2 {[%clk 0:01:35]}  Nd3 {[%clk 0:02:15]} 19. Bxd3 {[%clk 0:01:32]}  exd3 {[%clk 0:02:15]} 20. Rhe1 {[%clk 0:01:33]}  a4 {[%clk 0:02:06]} 21. Qxd3 {[%clk 0:01:22]}  axb3 {[%clk 0:02:06]} 22. axb3 {[%clk 0:01:22]}  Qe6 {[%clk 0:02:06]} 23. e4 {[%clk 0:01:21]}  Nh5 {[%clk 0:02:01]} 24. Nd5 {[%clk 0:01:15]}  Bxb2 {[%clk 0:02:01]} 25. Kxb2 {[%clk 0:01:14]}  Nxf4 {[%clk 0:01:58]} 26. Qc3 {[%clk 0:00:49]}  Nxd5 {[%clk 0:01:54]} 27. exd5 {[%clk 0:00:49]}  Qf5 {[%clk 0:01:54]} 28. b4 {[%clk 0:00:38]}  Qf2+ {[%clk 0:01:44]} 29. Qc2 {[%clk 0:00:30]}  Ra2+ {[%clk 0:01:37]} 0-1


[Site "https://www.chess.com"]

[Event "Titled Tuesday Blitz July 4 Early 2023"]
[White "Durarbayli, Vasif"]
[Black "Keleberda, Tymur"]
[WhiteFideId "13402935"]
[BlackFideId "14174294"]
[WhiteElo "2913"]
[BlackElo "2501"]
[Result "1-0"]
[Round "1"]
[TimeControl "180+2"]
[Date "2023.07.04"]
[WhiteClock "0:00:06"]
[BlackClock "0:00:08"]
[Board "33"]

1. e4 {[%clk 0:03:00]}  c5 {[%clk 0:02:56]} 2. Nf3 {[%clk 0:03:00]}  d6 {[%clk 0:02:56]} 3. d4 {[%clk 0:03:00]}  cxd4 {[%clk 0:02:57]} 4. Nxd4 {[%clk 0:03:00]}  Nf6 {[%clk 0:02:57]} 5. Nc3 {[%clk 0:03:01]}  a6 {[%clk 0:02:58]} 6. Be2 {[%clk 0:03:01]}  e5 {[%clk 0:02:58]} 7. Nb3 {[%clk 0:03:02]}  Be7 {[%clk 0:02:58]} 8. Be3 {[%clk 0:03:01]}  Be6 {[%clk 0:02:56]} 9. O-O {[%clk 0:03:00]}  O-O {[%clk 0:02:53]} 10. Re1 {[%clk 0:03:00]}  Qc7 {[%clk 0:02:40]} 11. a4 {[%clk 0:02:58]}  Nc6 {[%clk 0:02:40]} 12. Nd5 {[%clk 0:02:36]}  Bxd5 {[%clk 0:02:14]} 13. exd5 {[%clk 0:02:36]}  Nb4 {[%clk 0:02:12]} 14. c4 {[%clk 0:02:33]}  a5 {[%clk 0:02:05]} 15. Nd2 {[%clk 0:02:06]}  b6 {[%clk 0:02:02]} 16. Nb1 {[%clk 0:02:06]}  Nd7 {[%clk 0:01:50]} 17. Nc3 {[%clk 0:02:04]}  f5 {[%clk 0:01:30]} 18. Nb5 {[%clk 0:02:03]}  Qb7 {[%clk 0:01:17]} 19. f4 {[%clk 0:02:03]}  Rac8 {[%clk 0:01:12]} 20. Ra3 {[%clk 0:02:01]}  Rfe8 {[%clk 0:00:59]} 21. fxe5 {[%clk 0:01:46]}  Nxe5 {[%clk 0:00:59]} 22. Bd4 {[%clk 0:01:31]}  Qd7 {[%clk 0:00:44]} 23. Bxb6 {[%clk 0:01:17]}  Nxc4 {[%clk 0:00:44]} 24. Bxc4 {[%clk 0:01:17]}  Rxc4 {[%clk 0:00:44]} 25. Rc3 {[%clk 0:00:59]}  Rec8 {[%clk 0:00:40]} 26. Bxa5 {[%clk 0:00:54]}  Bf6 {[%clk 0:00:37]} 27. Rxc4 {[%clk 0:00:32]}  Rxc4 {[%clk 0:00:38]} 28. Qb3 {[%clk 0:00:32]}  Rf4 {[%clk 0:00:26]} 29. Bxb4 {[%clk 0:00:29]}  Qb7 {[%clk 0:00:21]} 30. Bxd6 {[%clk 0:00:21]}  Rd4 {[%clk 0:00:14]} 31. Kh1 {[%clk 0:00:14]}  Re4 {[%clk 0:00:11]} 32. Rxe4 {[%clk 0:00:13]}  fxe4 {[%clk 0:00:12]} 33. Bg3 {[%clk 0:00:12]}  Qc8 {[%clk 0:00:11]} 34. d6+ {[%clk 0:00:12]}  Kf8 {[%clk 0:00:09]} 35. Nc3 {[%clk 0:00:12]}  Qf5 {[%clk 0:00:09]} 36. Qd1 {[%clk 0:00:10]}  e3 {[%clk 0:00:08]} 37. d7 {[%clk 0:00:10]}  Qa5 {[%clk 0:00:08]} 38. b4 {[%clk 0:00:06]}  Qc7 {[%clk 0:00:08]} 1-0


[Site "https://www.chess.com"]

[Event "Titled Tuesday Blitz July 4 Early 2023"]
[White "Devaev, Alexander"]
[Black "Vokhidov, Shamsiddin"]
[WhiteFideId "4169395"]
[BlackFideId "14204223"]
[WhiteElo "2501"]
[BlackElo "2911"]
[Result "0-1"]
[Round "1"]
[TimeControl "180+2"]
[Date "2023.07.04"]
[WhiteClock "0:00:06"]
[BlackClock "0:01:25"]
[Board "34"]

1. Nf3 {[%clk 0:02:55]}  c5 {[%clk 0:02:59]} 2. c4 {[%clk 0:02:54]}  Nf6 {[%clk 0:02:59]} 3. Nc3 {[%clk 0:02:50]}  Nc6 {[%clk 0:02:59]} 4. e3 {[%clk 0:02:51]}  e6 {[%clk 0:02:57]} 5. Be2 {[%clk 0:02:51]}  d5 {[%clk 0:02:58]} 6. cxd5 {[%clk 0:02:51]}  Nxd5 {[%clk 0:02:56]} 7. O-O {[%clk 0:02:50]}  Be7 {[%clk 0:02:56]} 8. a3 {[%clk 0:02:50]}  O-O {[%clk 0:02:55]} 9. Qc2 {[%clk 0:02:50]}  b6 {[%clk 0:02:55]} 10. Ne4 {[%clk 0:02:50]}  Bb7 {[%clk 0:02:54]} 11. d3 {[%clk 0:02:51]}  Rc8 {[%clk 0:02:54]} 12. Re1 {[%clk 0:02:52]}  Qd7 {[%clk 0:02:52]} 13. Rb1 {[%clk 0:02:52]}  Rfd8 {[%clk 0:02:51]} 14. Bf1 {[%clk 0:02:53]}  h6 {[%clk 0:02:51]} 15. b3 {[%clk 0:02:45]}  f5 {[%clk 0:02:47]} 16. Ng3 {[%clk 0:02:45]}  e5 {[%clk 0:02:47]} 17. Bb2 {[%clk 0:02:45]}  Bf6 {[%clk 0:02:46]} 18. Ba1 {[%clk 0:02:42]}  g6 {[%clk 0:02:44]} 19. h3 {[%clk 0:02:40]}  Nde7 {[%clk 0:02:40]} 20. Rbc1 {[%clk 0:02:29]}  a5 {[%clk 0:02:39]} 21. Qb1 {[%clk 0:02:24]}  Kg7 {[%clk 0:02:38]} 22. Nd2 {[%clk 0:02:16]}  Qe6 {[%clk 0:02:32]} 23. Qc2 {[%clk 0:02:10]}  h5 {[%clk 0:02:26]} 24. Nc4 {[%clk 0:02:10]}  h4 {[%clk 0:02:24]} 25. Ne2 {[%clk 0:02:04]}  Nb8 {[%clk 0:02:13]} 26. Qb1 {[%clk 0:01:59]}  Ba6 {[%clk 0:02:08]} 27. Nc3 {[%clk 0:01:58]}  Rc7 {[%clk 0:01:59]} 28. Qc2 {[%clk 0:01:45]}  Rb7 {[%clk 0:01:58]} 29. Na4 {[%clk 0:01:29]}  Nd7 {[%clk 0:01:55]} 30. Nd2 {[%clk 0:01:28]}  b5 {[%clk 0:01:45]} 31. Nxc5 {[%clk 0:01:19]}  Nxc5 {[%clk 0:01:45]} 32. Qxc5 {[%clk 0:01:20]}  Rc8 {[%clk 0:01:45]} 33. d4 {[%clk 0:01:03]}  Rxc5 {[%clk 0:01:43]} 34. dxc5 {[%clk 0:01:04]}  b4 {[%clk 0:01:34]} 35. c6 {[%clk 0:00:56]}  Ra7 {[%clk 0:01:34]} 36. c7 {[%clk 0:00:31]}  Bxf1 {[%clk 0:01:32]} 37. Nxf1 {[%clk 0:00:27]}  Qc8 {[%clk 0:01:30]} 38. axb4 {[%clk 0:00:25]}  axb4 {[%clk 0:01:31]} 39. f4 {[%clk 0:00:22]}  Rxc7 {[%clk 0:01:30]} 40. Rcd1 {[%clk 0:00:22]}  exf4 {[%clk 0:01:28]} 41. Bxf6+ {[%clk 0:00:22]}  Kxf6 {[%clk 0:01:29]} 42. exf4 {[%clk 0:00:22]}  Rc6 {[%clk 0:01:27]} 43. Ne3 {[%clk 0:00:23]}  Re6 {[%clk 0:01:26]} 44. Rc1 {[%clk 0:00:20]}  Qb8 {[%clk 0:01:26]} 45. Rc4 {[%clk 0:00:17]}  Qb6 {[%clk 0:01:25]} 46. Kf2 {[%clk 0:00:06]}  Nd5 {[%clk 0:01:25]} 0-1


[Site "https://www.chess.com"]

[Event "Titled Tuesday Blitz July 4 Early 2023"]
[White "Deng, Henry"]
[Black "Aravindh, Chithambaram VR."]
[WhiteFideId "30965454"]
[BlackFideId "5072786"]
[WhiteElo "2498"]
[BlackElo "2905"]
[Result "0-1"]
[Round "1"]
[TimeControl "180+2"]
[Date "2023.07.04"]
[WhiteClock "0:00:12"]
[BlackClock "0:00:11"]
[Board "36"]

1. e4 {[%clk 0:03:00]}  g6 {[%clk 0:02:59]} 2. d4 {[%clk 0:03:00]}  Bg7 {[%clk 0:02:59]} 3. Nc3 {[%clk 0:03:01]}  c6 {[%clk 0:02:58]} 4. Be3 {[%clk 0:03:00]}  d5 {[%clk 0:02:58]} 5. e5 {[%clk 0:03:01]}  Nh6 {[%clk 0:02:58]} 6. Qd2 {[%clk 0:02:53]}  Nf5 {[%clk 0:02:58]} 7. Bf4 {[%clk 0:02:45]}  Nd7 {[%clk 0:02:45]} 8. Nf3 {[%clk 0:02:35]}  h5 {[%clk 0:02:43]} 9. Be2 {[%clk 0:02:22]}  Nf8 {[%clk 0:02:42]} 10. h3 {[%clk 0:01:58]}  Ne6 {[%clk 0:02:41]} 11. Be3 {[%clk 0:01:50]}  b5 {[%clk 0:01:48]} 12. O-O-O {[%clk 0:01:47]}  Qa5 {[%clk 0:01:48]} 13. a3 {[%clk 0:01:21]}  Nxe3 {[%clk 0:01:47]} 14. fxe3 {[%clk 0:01:20]}  Rb8 {[%clk 0:01:47]} 15. g4 {[%clk 0:01:14]}  Qb6 {[%clk 0:01:37]} 16. Nb1 {[%clk 0:01:00]}  a5 {[%clk 0:01:35]} 17. Bd3 {[%clk 0:00:54]}  c5 {[%clk 0:01:24]} 18. dxc5 {[%clk 0:00:47]}  Nxc5 {[%clk 0:01:22]} 19. Nc3 {[%clk 0:00:37]}  e6 {[%clk 0:01:22]} 20. Bxb5+ {[%clk 0:00:36]}  Bd7 {[%clk 0:01:23]} 21. a4 {[%clk 0:00:32]}  Qc7 {[%clk 0:01:07]} 22. Qd4 {[%clk 0:00:30]}  Bxb5 {[%clk 0:00:50]} 23. axb5 {[%clk 0:00:29]}  Nd7 {[%clk 0:00:50]} 24. e4 {[%clk 0:00:27]}  Nxe5 {[%clk 0:00:47]} 25. Nxe5 {[%clk 0:00:27]}  Bxe5 {[%clk 0:00:46]} 26. Qa4 {[%clk 0:00:28]}  Bxc3 {[%clk 0:00:30]} 27. b6+ {[%clk 0:00:21]}  Qd7 {[%clk 0:00:30]} 28. Qxd7+ {[%clk 0:00:21]}  Kxd7 {[%clk 0:00:31]} 29. bxc3 {[%clk 0:00:21]}  hxg4 {[%clk 0:00:29]} 30. exd5 {[%clk 0:00:20]}  gxh3 {[%clk 0:00:21]} 31. dxe6+ {[%clk 0:00:20]}  Kxe6 {[%clk 0:00:22]} 32. Rhe1+ {[%clk 0:00:19]}  Kf6 {[%clk 0:00:23]} 33. Rd7 {[%clk 0:00:18]}  Rxb6 {[%clk 0:00:20]} 34. Rf1+ {[%clk 0:00:19]}  Kg5 {[%clk 0:00:21]} 35. Rdxf7 {[%clk 0:00:19]}  h2 {[%clk 0:00:21]} 36. Rh1 {[%clk 0:00:18]}  Kg4 {[%clk 0:00:21]} 37. Rd7 {[%clk 0:00:16]}  Rf6 {[%clk 0:00:18]} 38. Rd2 {[%clk 0:00:15]}  Kg3 {[%clk 0:00:19]} 39. Rd3+ {[%clk 0:00:13]}  Kg2 {[%clk 0:00:18]} 40. Rdd1 {[%clk 0:00:12]}  g5 {[%clk 0:00:13]} 41. c4 {[%clk 0:00:12]}  g4 {[%clk 0:00:13]} 42. c5 {[%clk 0:00:12]}  g3 {[%clk 0:00:14]} 43. Kb2 {[%clk 0:00:11]}  Rc6 {[%clk 0:00:13]} 44. Kb3 {[%clk 0:00:11]}  Rxc5 {[%clk 0:00:13]} 45. c4 {[%clk 0:00:11]}  Rb8+ {[%clk 0:00:13]} 46. Kc3 {[%clk 0:00:11]}  Rb4 {[%clk 0:00:12]} 47. Rhe1 {[%clk 0:00:11]}  Rcxc4+ {[%clk 0:00:12]} 48. Kd3 {[%clk 0:00:11]}  Rd4+ {[%clk 0:00:12]} 49. Kc3 {[%clk 0:00:11]}  Rxd1 {[%clk 0:00:12]} 50. Rxd1 {[%clk 0:00:12]}  h1=Q {[%clk 0:00:13]} 51. Rd2+ {[%clk 0:00:13]}  Kh3 {[%clk 0:00:12]} 52. Rd3 {[%clk 0:00:12]}  Qc1# {[%clk 0:00:11]} 0-1


[Site "https://www.chess.com"]

[Event "Titled Tuesday Blitz July 4 Early 2023"]
[White "Herzog2012"]
[Black "Demidov, Mikhail"]
[BlackFideId "4197143"]
[WhiteElo "2487"]
[BlackElo "2883"]
[Result "0-1"]
[Round "1"]
[TimeControl "180+2"]
[Date "2023.07.04"]
[WhiteClock "0:00:00"]
[BlackClock "0:00:28"]
[Board "42"]

1. e4 {[%clk 0:02:57]}  g6 {[%clk 0:02:59]} 2. d4 {[%clk 0:02:56]}  Bg7 {[%clk 0:03:00]} 3. Nc3 {[%clk 0:02:56]}  a6 {[%clk 0:03:00]} 4. a4 {[%clk 0:02:55]}  d6 {[%clk 0:03:00]} 5. g3 {[%clk 0:02:51]}  Nf6 {[%clk 0:02:59]} 6. Bg2 {[%clk 0:02:51]}  O-O {[%clk 0:02:59]} 7. Nge2 {[%clk 0:02:51]}  e5 {[%clk 0:02:59]} 8. h3 {[%clk 0:02:49]}  exd4 {[%clk 0:02:54]} 9. Nxd4 {[%clk 0:02:50]}  Nc6 {[%clk 0:02:54]} 10. Be3 {[%clk 0:02:49]}  Re8 {[%clk 0:02:52]} 11. O-O {[%clk 0:02:48]}  Bd7 {[%clk 0:02:51]} 12. Re1 {[%clk 0:02:26]}  Qc8 {[%clk 0:02:51]} 13. Kh2 {[%clk 0:02:25]}  Re5 {[%clk 0:02:51]} 14. g4 {[%clk 0:02:05]}  Re8 {[%clk 0:02:20]} 15. Nxc6 {[%clk 0:01:53]}  bxc6 {[%clk 0:02:18]} 16. Qd3 {[%clk 0:01:13]}  Rb8 {[%clk 0:02:14]} 17. Rab1 {[%clk 0:01:10]}  c5 {[%clk 0:02:12]} 18. b3 {[%clk 0:01:08]}  Rb4 {[%clk 0:02:05]} 19. Nd5 {[%clk 0:01:05]}  Nxd5 {[%clk 0:02:04]} 20. exd5 {[%clk 0:01:05]}  f5 {[%clk 0:01:48]} 21. c3 {[%clk 0:00:41]}  c4 {[%clk 0:01:48]} 22. bxc4 {[%clk 0:00:37]}  Rxb1 {[%clk 0:01:48]} 23. Rxb1 {[%clk 0:00:33]}  fxg4 {[%clk 0:01:48]} 24. hxg4 {[%clk 0:00:33]}  Bxg4 {[%clk 0:01:49]} 25. Re1 {[%clk 0:00:30]}  Qd8 {[%clk 0:01:43]} 26. Kg1 {[%clk 0:00:25]}  Qf6 {[%clk 0:01:23]} 27. Bd2 {[%clk 0:00:21]}  Rf8 {[%clk 0:01:19]} 28. Qg3 {[%clk 0:00:19]}  Bd7 {[%clk 0:01:16]} 29. Bg5 {[%clk 0:00:14]}  Qf5 {[%clk 0:01:12]} 30. Re7 {[%clk 0:00:12]}  Rf7 {[%clk 0:00:46]} 31. Be4 {[%clk 0:00:09]}  Rxe7 {[%clk 0:00:28]} 32. Bxf5 {[%clk 0:00:06]}  Re1+ {[%clk 0:00:29]} 33. Kg2 {[%clk 0:00:06]}  Bxf5 {[%clk 0:00:30]} 34. Qh4 {[%clk 0:00:04]}  Re4 {[%clk 0:00:28]} 35. Qg3 {[%clk 0:00:00]}  Rg4 {[%clk 0:00:28]} 0-1


[Site "https://www.chess.com"]

[Event "Titled Tuesday Blitz July 4 Early 2023"]
[White "Kupervaser, Erez"]
[Black "Elsa167"]
[WhiteFideId "2814587"]
[WhiteElo "2485"]
[BlackElo "2882"]
[Result "1-0"]
[Round "1"]
[TimeControl "180+2"]
[Date "2023.07.04"]
[WhiteClock "0:00:37"]
[BlackClock "0:00:00"]
[Board "44"]

1. e4 {[%clk 0:02:59]}  c5 {[%clk 0:02:58]} 2. Nf3 {[%clk 0:02:53]}  e6 {[%clk 0:02:58]} 3. d4 {[%clk 0:02:52]}  cxd4 {[%clk 0:02:59]} 4. Nxd4 {[%clk 0:02:53]}  Nf6 {[%clk 0:02:59]} 5. Nc3 {[%clk 0:02:53]}  Nc6 {[%clk 0:03:00]} 6. Nxc6 {[%clk 0:02:53]}  bxc6 {[%clk 0:03:00]} 7. e5 {[%clk 0:02:53]}  Nd5 {[%clk 0:03:01]} 8. Ne4 {[%clk 0:02:54]}  Qc7 {[%clk 0:03:02]} 9. f4 {[%clk 0:02:53]}  Rb8 {[%clk 0:03:02]} 10. c4 {[%clk 0:02:51]}  Bb4+ {[%clk 0:02:59]} 11. Ke2 {[%clk 0:02:51]}  O-O {[%clk 0:02:56]} 12. cxd5 {[%clk 0:02:51]}  cxd5 {[%clk 0:02:57]} 13. Ng5 {[%clk 0:02:51]}  h6 {[%clk 0:02:56]} 14. Nf3 {[%clk 0:02:50]}  f6 {[%clk 0:02:55]} 15. Qd3 {[%clk 0:02:16]}  fxe5 {[%clk 0:01:58]} 16. fxe5 {[%clk 0:02:11]}  Rb6 {[%clk 0:01:20]} 17. Kd1 {[%clk 0:02:06]}  Ba6 {[%clk 0:01:12]} 18. Qg6 {[%clk 0:01:56]}  Bxf1 {[%clk 0:00:51]} 19. Rxf1 {[%clk 0:01:43]}  Qc4 {[%clk 0:00:50]} 20. Rf2 {[%clk 0:01:32]}  Rf5 {[%clk 0:00:48]} 21. Bxh6 {[%clk 0:01:16]}  Qd3+ {[%clk 0:00:33]} 22. Nd2 {[%clk 0:01:13]}  Bf8 {[%clk 0:00:33]} 23. g4 {[%clk 0:00:58]}  Rf3 {[%clk 0:00:06]} 24. Qxd3 {[%clk 0:00:57]}  Rxd3 {[%clk 0:00:07]} 25. Kc2 {[%clk 0:00:56]}  Rh3 {[%clk 0:00:03]} 26. Bf4 {[%clk 0:00:54]}  Rc6+ {[%clk 0:00:04]} 27. Kd1 {[%clk 0:00:52]}  Rd3 {[%clk 0:00:04]} 28. Ke2 {[%clk 0:00:50]}  Rd4 {[%clk 0:00:04]} 29. h3 {[%clk 0:00:48]}  Rc2 {[%clk 0:00:05]} 30. Be3 {[%clk 0:00:44]}  Re4 {[%clk 0:00:02]} 31. Kd3 {[%clk 0:00:41]}  Rxe3+ {[%clk 0:00:01]} 32. Kxe3 {[%clk 0:00:40]}  Bc5+ {[%clk 0:00:01]} 33. Kd3 {[%clk 0:00:40]}  Rxb2 {[%clk 0:00:02]} 34. Re2 {[%clk 0:00:38]}  Bb4 {[%clk 0:00:02]} 35. Nf3 {[%clk 0:00:38]}  Rxe2 {[%clk 0:00:02]} 36. Kxe2 {[%clk 0:00:39]}  Kf7 {[%clk 0:00:02]} 37. Kd3 {[%clk 0:00:38]}  Ke7 {[%clk 0:00:03]} 38. Rb1 {[%clk 0:00:39]}  Bc5 {[%clk 0:00:04]} 39. Rb7 {[%clk 0:00:38]}  Bb6 {[%clk 0:00:05]} 40. Rb8 {[%clk 0:00:38]}  d6 {[%clk 0:00:05]} 41. Rb7+ {[%clk 0:00:37]}  Bc7 {[%clk 0:00:00]} 42. Rxc7+ {[%clk 0:00:37]} 1-0


[Site "https://www.chess.com"]

[Event "Titled Tuesday Blitz July 4 Early 2023"]
[White "Ter-Sahakyan, Samvel"]
[Black "Rottenwohrer Suarez, Juan"]
[WhiteFideId "13302531"]
[BlackFideId "32068182"]
[WhiteElo "2879"]
[BlackElo "2483"]
[Result "1/2-1/2"]
[Round "1"]
[TimeControl "180+2"]
[Date "2023.07.04"]
[WhiteClock "0:00:03"]
[BlackClock "0:00:07"]
[Board "45"]

1. d4 {[%clk 0:02:59]}  Nf6 {[%clk 0:02:46]} 2. c4 {[%clk 0:02:59]}  g6 {[%clk 0:02:47]} 3. Nc3 {[%clk 0:02:59]}  Bg7 {[%clk 0:02:47]} 4. e4 {[%clk 0:02:59]}  d6 {[%clk 0:02:48]} 5. Be2 {[%clk 0:02:59]}  Na6 {[%clk 0:02:45]} 6. Be3 {[%clk 0:02:58]}  c5 {[%clk 0:02:39]} 7. e5 {[%clk 0:02:32]}  dxe5 {[%clk 0:02:16]} 8. dxe5 {[%clk 0:02:31]}  Qxd1+ {[%clk 0:02:16]} 9. Rxd1 {[%clk 0:02:31]}  Ng4 {[%clk 0:02:17]} 10. Bxg4 {[%clk 0:01:54]}  Bxg4 {[%clk 0:02:17]} 11. f3 {[%clk 0:01:54]}  Be6 {[%clk 0:02:15]} 12. f4 {[%clk 0:01:36]}  Bxc4 {[%clk 0:02:13]} 13. b3 {[%clk 0:01:35]}  Be6 {[%clk 0:02:13]} 14. Nf3 {[%clk 0:01:35]}  O-O {[%clk 0:02:07]} 15. Ng5 {[%clk 0:01:33]}  Bg4 {[%clk 0:02:06]} 16. Rd2 {[%clk 0:01:29]}  Rfd8 {[%clk 0:02:05]} 17. h3 {[%clk 0:01:18]}  Bd7 {[%clk 0:01:56]} 18. Kf2 {[%clk 0:01:08]}  Bc6 {[%clk 0:01:56]} 19. Rhd1 {[%clk 0:01:07]}  Rxd2+ {[%clk 0:01:55]} 20. Rxd2 {[%clk 0:01:08]}  b6 {[%clk 0:01:52]} 21. Nd5 {[%clk 0:01:01]}  Re8 {[%clk 0:01:45]} 22. g4 {[%clk 0:00:55]}  f6 {[%clk 0:01:43]} 23. Nf3 {[%clk 0:00:50]}  Kf7 {[%clk 0:01:39]} 24. Nc3 {[%clk 0:00:43]}  fxe5 {[%clk 0:01:07]} 25. Nxe5+ {[%clk 0:00:43]}  Bxe5 {[%clk 0:01:07]} 26. fxe5 {[%clk 0:00:44]}  Ke6 {[%clk 0:01:06]} 27. Bh6 {[%clk 0:00:35]}  Nb4 {[%clk 0:00:59]} 28. Ke3 {[%clk 0:00:30]}  Kxe5 {[%clk 0:00:54]} 29. Bg7+ {[%clk 0:00:25]}  Ke6 {[%clk 0:00:54]} 30. Kf4 {[%clk 0:00:26]}  Nd5+ {[%clk 0:00:53]} 31. Nxd5 {[%clk 0:00:26]}  Bxd5 {[%clk 0:00:54]} 32. Kg5 {[%clk 0:00:25]}  b5 {[%clk 0:00:41]} 33. Kh6 {[%clk 0:00:24]}  c4 {[%clk 0:00:40]} 34. bxc4 {[%clk 0:00:24]}  bxc4 {[%clk 0:00:41]} 35. Kxh7 {[%clk 0:00:21]}  Be4 {[%clk 0:00:41]} 36. Kh6 {[%clk 0:00:19]}  Bd3 {[%clk 0:00:38]} 37. Rb2 {[%clk 0:00:16]}  Kd5 {[%clk 0:00:32]} 38. Rb5+ {[%clk 0:00:10]}  Ke4 {[%clk 0:00:29]} 39. Ra5 {[%clk 0:00:09]}  e5 {[%clk 0:00:29]} 40. Rxa7 {[%clk 0:00:08]}  c3 {[%clk 0:00:28]} 41. Rc7 {[%clk 0:00:07]}  c2 {[%clk 0:00:28]} 42. Kxg6 {[%clk 0:00:08]}  Re6+ {[%clk 0:00:18]} 43. Kf7 {[%clk 0:00:08]}  Ra6 {[%clk 0:00:18]} 44. Rc5 {[%clk 0:00:06]}  Rxa2 {[%clk 0:00:13]} 45. Rxe5+ {[%clk 0:00:05]}  Kf4 {[%clk 0:00:13]} 46. Re1 {[%clk 0:00:05]}  Kg3 {[%clk 0:00:12]} 47. Bh6 {[%clk 0:00:02]}  Kxh3 {[%clk 0:00:11]} 48. g5 {[%clk 0:00:02]}  Ra6 {[%clk 0:00:07]} 49. Ke7 {[%clk 0:00:01]}  Bg6 {[%clk 0:00:08]} 50. Kd7 {[%clk 0:00:01]}  Kg3 {[%clk 0:00:08]} 51. Rc1 {[%clk 0:00:02]}  Kf2 {[%clk 0:00:08]} 52. Bg7 {[%clk 0:00:02]}  Ke2 {[%clk 0:00:08]} 53. Bc3 {[%clk 0:00:02]}  Kd3 {[%clk 0:00:07]} 54. Bb2 {[%clk 0:00:03]}  Rb6 {[%clk 0:00:07]} 55. Ba3 {[%clk 0:00:03]}  Rb3 {[%clk 0:00:07]} 56. Bd6 {[%clk 0:00:02]}  Rb1 {[%clk 0:00:07]} 57. Bf4 {[%clk 0:00:03]}  Rb4 {[%clk 0:00:04]} 58. Be5 {[%clk 0:00:02]}  Rb5 {[%clk 0:00:04]} 59. Bf4 {[%clk 0:00:03]}  Rf5 {[%clk 0:00:04]} 60. Bd6 {[%clk 0:00:02]}  Rd5 {[%clk 0:00:04]} 61. Ke7 {[%clk 0:00:02]}  Rxg5 {[%clk 0:00:04]} 62. Kf6 {[%clk 0:00:02]}  Rb5 {[%clk 0:00:04]} 63. Be5 {[%clk 0:00:02]}  Rb1 {[%clk 0:00:04]} 64. Bf4 {[%clk 0:00:02]}  Be4 {[%clk 0:00:04]} 65. Kg5 {[%clk 0:00:02]}  Bf3 {[%clk 0:00:04]} 66. Kh4 {[%clk 0:00:02]}  Bd1 {[%clk 0:00:05]} 67. Kg3 {[%clk 0:00:03]}  Rb4 {[%clk 0:00:05]} 68. Bh6 {[%clk 0:00:02]}  Rb5 {[%clk 0:00:05]} 69. Kf2 {[%clk 0:00:02]}  Rb6 {[%clk 0:00:04]} 70. Bg5 {[%clk 0:00:02]}  Rg6 {[%clk 0:00:05]} 71. Bf4 {[%clk 0:00:02]}  Rf6 {[%clk 0:00:05]} 72. Kg3 {[%clk 0:00:02]}  Rxf4 {[%clk 0:00:05]} 73. Kxf4 {[%clk 0:00:02]}  Kd2 {[%clk 0:00:06]} 74. Rxc2+ {[%clk 0:00:03]}  Bxc2 {[%clk 0:00:07]} 1/2-1/2


[Site "https://www.chess.com"]